lending/lending_fUSD_20250429
["ID","MTS","AMOUNT","RATE_DAILY","PERIOD"]
[359356666,1745949101168,-470.0,0.00032602,2]
[359356667,1745949101178,-625.99,0.00032602,2]
[359356668,1745949101187,-568.66,0.00032602,2]
[359356669,1745949101196,-902.33,0.00032602,2]
[359356670,1745949101205,-486.67,0.00032602,2]
[359356671,1745949101215,-847.38,0.00032602,2]
[359356672,1745949101224,-682.29,0.00032602,2]
[359356673,1745949101235,-3039.36,0.00032602,2]
[359356674,1745949101244,-474.23,0.00032602,2]
[359356675,1745949101253,-470.0,0.00032602,2]
[359356676,1745949101262,-613.1,0.00032602,2]
[359356677,1745949101271,-683.49,0.00032602,2]
[359356678,1745949101281,-470.0,0.00032602,2]
[359356679,1745949101290,-537.75,0.00032602,2]
[359356680,1745949101299,-539.83,0.00032602,2]
[359356681,1745949101309,-595.72,0.00032602,2]
[359356682,1745949101318,-470.0,0.00032602,2]
[359356683,1745949101327,-6080.07,0.00032602,2]
[359356684,1745949101336,-481.77,0.00032602,2]
[359356685,1745949101346,-622.98,0.00032602,2]
[359356686,1745949101357,-520.98,0.00032602,2]
[359356687,1745949101366,-869.31,0.00032602,2]
[359356688,1745949101375,-704.81,0.00032602,2]
[359356689,1745949101384,-12545.32,0.00032602,2]
[359356690,1745949101393,-492.66,0.00032602,2]
[359356691,1745949101403,-783.52,0.00032602,2]
[359356692,1745949101412,-557.05,0.00032602,2]
[359356693,1745949101422,-470.0,0.00032602,2]
[359356694,1745949101431,-531.21,0.00032602,2]
[359356695,1745949101441,-470.0,0.00032602,2]
[359356696,1745949101451,-636.94,0.00032602,2]
[359356697,1745949101460,-488.6,0.00032602,2]
[359356698,1745949101615,-1144.88,0.00032602,2]
[359356699,1745949101626,-624.4,0.00032602,2]
[359356700,1745949101635,-650.35,0.00032602,2]
[359356701,1745949101646,-673.11,0.00032602,2]
[359356702,1745949101655,-470.0,0.00032602,2]
[359356703,1745949101665,-472.75,0.00032602,2]
[359356704,1745949101674,-470.0,0.00032602,2]
[359356705,1745949101684,-6481.15,0.00032602,2]
[359356706,1745949101693,-505.43,0.00032602,2]
[359356707,1745949101703,-204.5797402,0.00032602,2]
[359356708,1745949101713,-441.04492481,0.00032602,2]
[359356709,1745949101722,-61295.82,0.00032602,2]
[359356710,1745949101733,-482.94,0.00032602,2]
[359356711,1745949101742,-606.96,0.00032602,2]
[359356712,1745949101752,-773.47,0.00032602,2]
[359356713,1745949101761,-470.0,0.00032602,2]
[359356714,1745949101770,-586.56,0.00032602,2]
[359356715,1745949101780,-1001.6,0.00032602,2]
[359356716,1745949101789,-470.0,0.00032602,2]
[359356717,1745949101799,-470.0,0.00032602,2]
[359356718,1745949101808,-7239.44,0.00032602,2]
[359356719,1745949101819,-610.17,0.00032602,2]
[359356720,1745949101828,-6805.43,0.00032602,2]
[359356721,1745949101837,-2927.0,0.00032602,2]
[359356722,1745949101847,-500.0,0.00032603,2]
[359356723,1745949101857,-1000.0,0.0003263,2]
[359356724,1745949101868,-204.4,0.000327,2]
[359356725,1745949101877,-333.59446545,0.00032725,2]
[359356726,1745949101887,-51455.88,0.0003279,2]
[359356727,1745949101896,-500.0,0.00032852,5]
[359356728,1745949101906,-323.8715819,0.00032863,2]
[359356729,1745949101915,-519.67,0.00032876,2]
[359356730,1745949101924,-498.52,0.00032876,2]
[359356731,1745949101934,-470.0,0.00032876,2]
[359356732,1745949101943,-510.55233464,0.00032876,2]
[359356733,1745949101952,-537.97,0.00032876,2]
[359356734,1745949101962,-470.0,0.00032876,2]
[359356735,1745949101971,-1113.6,0.00032876,2]
[359356736,1745949101981,-611.04,0.00032876,2]
[359356737,1745949101990,-631.2,0.00032876,2]
[359356738,1745949102003,-564.79,0.00032876,2]
[359356739,1745949102021,-668.5,0.00032876,2]
[359356740,1745949102042,-826.62,0.00032876,2]
[359356741,1745949102053,-800.64,0.00032876,2]
[359356742,1745949102063,-470.0,0.00032876,2]
[359356743,1745949102073,-502.1,0.00032876,2]
[359356744,1745949102082,-2160.32,0.00032876,2]
[359356745,1745949102092,-1312.33,0.00032876,2]
[359356746,1745949102101,-548.44,0.00032876,2]
[359356747,1745949102111,-2312.86,0.00032876,2]
[359356748,1745949102121,-484.25,0.00032876,2]
[359356749,1745949102131,-470.0,0.00032876,2]
[359356750,1745949102140,-470.0,0.00032876,2]
[359356751,1745949102151,-343.42786059,0.00032876,2]
[359356752,1745949102161,-470.0,0.00032876,2]
[359356753,1745949102170,-590.34131736,0.00032876,2]
[359356754,1745949102180,-486.33,0.00032876,2]
[359356755,1745949102189,-657.74,0.00032876,2]
[359356756,1745949102199,-608.53018463,0.00032876,2]
[359356757,1745949102209,-542.45,0.00032876,2]
[359356758,1745949102220,-2000.0,0.00032876,2]
[359356759,1745949102235,-2000.0,0.00032876,2]
[359356760,1745949102250,-2000.0,0.00032876,2]
[359356761,1745949102260,-2000.0,0.00032876,2]
[359356762,1745949102269,-2000.0,0.00032876,2]
[359356763,1745949102279,-2000.0,0.00032876,2]
[359356764,1745949102289,-2010.86035142,0.00032876,2]
[359356765,1745949102298,-656.69,0.00032876,2]
[359356766,1745949102308,-552.91,0.00032876,2]
[359356767,1745949102318,-610.66,0.00032876,2]
[359356768,1745949102328,-558.47,0.00032876,2]
[359356769,1745949102337,-471.31,0.00032876,2]
[359356770,1745949102347,-1049.74,0.00032876,2]
[359356771,1745949102358,-566.36,0.00032876,2]
[359356772,1745949102368,-296.79443425,0.00032876,2]
[359356773,1745949102378,-534.78,0.00032876,2]
[359356774,1745949102387,-563.33,0.00032876,2]
[359356775,1745949102398,-470.0,0.00032876,2]
[359356776,1745949102408,-557.82,0.00032876,2]
[359356777,1745949102419,-1537.22,0.00032876,2]
[359356778,1745949102428,-496.59,0.00032876,2]
[359356779,1745949102438,-652.05,0.00032876,2]
[359356780,1745949102448,-1146.41,0.00032876,2]
[359356781,1745949102457,-579.71,0.00032876,2]
[359356782,1745949102467,-454.65,0.00032876,2]
[359356783,1745949102478,-470.0,0.00032876,2]
[359356784,1745949102487,-704.42,0.00032876,2]
[359356785,1745949102497,-216.8062105,0.00032876,2]
[359356786,1745949102506,-470.0,0.00032876,2]
[359356787,1745949102515,-470.0,0.00032876,2]
[359356788,1745949102525,-470.0,0.00032876,2]
[359356789,1745949102534,-625.71,0.00032876,2]
[359356790,1745949102544,-2279.31,0.00032876,2]
[359356791,1745949102553,-544.48,0.00032876,2]
[359356792,1745949102563,-904.77,0.00032876,2]
[359356793,1745949102575,-1788.53,0.00032876,2]
[359356794,1745949102584,-510.11,0.00032876,2]
[359356795,1745949102594,-3823.23,0.00032876,2]
[359356796,1745949102603,-2052.75,0.00032876,2]
[359356797,1745949102613,-685.59,0.00032876,2]
[359356798,1745949102623,-539.63,0.00032876,2]
[359356799,1745949102632,-2047.07,0.00032876,2]
[359356800,1745949102642,-1581.86,0.00032876,2]
[359356801,1745949102651,-470.0,0.00032876,2]
[359356802,1745949102661,-703.7,0.00032876,2]
[359356803,1745949102671,-2163.53,0.00032876,2]
[359356804,1745949102681,-515.86,0.00032876,2]
[359356805,1745949102690,-1020.49,0.00032876,2]
[359356806,1745949102700,-716.59,0.00032876,2]
[359356807,1745949102709,-490.92,0.00032876,2]
[359356808,1745949102719,-2329.69,0.00032876,2]
[359356809,1745949102729,-470.0,0.00032876,2]
[359356810,1745949102739,-765.88,0.00032876,2]
[359356811,1745949102748,-470.0,0.00032876,2]
[359356812,1745949102759,-383.12898864,0.00032876,2]
[359356813,1745949102770,-568.19,0.00032876,2]
[359356814,1745949102781,-1203.42,0.00032876,2]
[359356815,1745949102791,-970.99,0.00032876,2]
[359356816,1745949102800,-645.19,0.00032876,2]
[359356817,1745949102810,-901.28,0.00032876,2]
[359356818,1745949102819,-701.64,0.00032876,2]
[359356819,1745949102828,-470.0,0.00032876,2]
[359356820,1745949102837,-1092.53,0.00032876,2]
[359356821,1745949102847,-167.21449458,0.00032876,2]
[359356822,1745949102856,-332.2,0.00032876,2]
[359356823,1745949102865,-903.38,0.00032876,2]
[359356824,1745949102875,-161.26,0.00032876,2]
[359356825,1745949102884,-1736.45,0.00032876,2]
[359356826,1745949102894,-1436.64,0.00032876,2]
[359356827,1745949102904,-559.81,0.00032876,2]
[359356828,1745949102913,-2108.64,0.00032876,2]
[359356829,1745949102923,-960.7,0.00032876,2]
[359356830,1745949102931,-2353.36,0.00032876,2]
[359356831,1745949102941,-745.59,0.00032876,2]
[359356832,1745949102951,-545.5,0.00032876,2]
[359356833,1745949102960,-549.47,0.00032876,2]
[359356834,1745949102970,-586.45,0.00032876,2]
[359356835,1745949102979,-770.83,0.00032876,2]
[359356836,1745949102989,-470.0,0.00032876,2]
[359356837,1745949102999,-797.04,0.00032876,2]
[359356838,1745949103009,-543.81,0.00032876,2]
[359356839,1745949103019,-885.12,0.00032876,2]
[359356840,1745949103029,-562.35,0.00032876,2]
[359356841,1745949103038,-476.24,0.00032876,2]
[359356842,1745949103048,-880.52,0.00032876,2]
[359356843,1745949103060,-915.71,0.00032876,2]
[359356844,1745949103069,-820.44,0.00032876,2]
[359356845,1745949103080,-470.0,0.00032876,2]
[359356846,1745949103090,-470.0,0.00032876,2]
[359356847,1745949103100,-625.99,0.00032876,2]
[359356848,1745949103110,-568.66,0.00032876,2]
[359356849,1745949103120,-902.33,0.00032876,2]
[359356850,1745949103130,-486.67,0.00032876,2]
[359356851,1745949103140,-847.38,0.00032876,2]
[359356852,1745949103150,-682.29,0.00032876,2]
[359356853,1745949103159,-3039.36,0.00032876,2]
[359356854,1745949103168,-474.23,0.00032876,2]
[359356855,1745949103178,-470.0,0.00032876,2]
[359356856,1745949103188,-613.1,0.00032876,2]
[359356857,1745949103197,-683.49,0.00032876,2]
[359356858,1745949103206,-310.90081739,0.00032876,2]
[359356859,1745949103216,-537.75,0.00032876,2]
[359356860,1745949103226,-539.83,0.00032876,2]
[359356861,1745949103235,-595.72,0.00032876,2]
[359356862,1745949103244,-470.0,0.00032876,2]
[359356863,1745949103254,-6080.07,0.00032876,2]
[359356864,1745949103263,-481.77,0.00032876,2]
[359356865,1745949103273,-520.98,0.00032876,2]
[359356866,1745949103282,-622.98,0.00032876,2]
[359356867,1745949103291,-869.31,0.00032876,2]
[359356868,1745949103301,-704.81,0.00032876,2]
[359356869,1745949103310,-492.66,0.00032876,2]
[359356870,1745949103319,-12545.32,0.00032876,2]
[359356871,1745949103328,-783.52,0.00032876,2]
[359356872,1745949103337,-557.05,0.00032876,2]
[359356873,1745949103347,-470.0,0.00032876,2]
[359356874,1745949103356,-531.21,0.00032876,2]
[359356875,1745949103365,-470.0,0.00032876,2]
[359356876,1745949103375,-636.94,0.00032876,2]
[359356877,1745949103384,-488.6,0.00032876,2]
[359356878,1745949103393,-1144.88,0.00032876,2]
[359356879,1745949103404,-624.4,0.00032876,2]
[359356880,1745949103414,-650.35,0.00032876,2]
[359356881,1745949103423,-673.11,0.00032876,2]
[359356882,1745949103433,-470.0,0.00032876,2]
[359356883,1745949103442,-472.75,0.00032876,2]
[359356884,1745949103451,-470.0,0.00032876,2]
[359356885,1745949103461,-6481.15,0.00032876,2]
[359356886,1745949103471,-505.43,0.00032876,2]
[359356887,1745949103480,-300.0,0.00032876,2]
[359356888,1745949103490,-300.0,0.00032876,2]
[359356889,1745949103499,-61295.82,0.00032876,2]
[359356890,1745949103509,-482.94,0.00032876,2]
[359356891,1745949103518,-606.96,0.00032876,2]
[359356892,1745949103527,-773.47,0.00032876,2]
[359356893,1745949103536,-251.76381291,0.00032876,2]
[359356894,1745949103546,-586.56,0.00032876,2]
[359356895,1745949103556,-1001.6,0.00032876,2]
[359356896,1745949103566,-470.0,0.00032876,2]
[359356897,1745949103575,-470.0,0.00032876,2]
[359356898,1745949103585,-7239.44,0.00032876,2]
[359356899,1745949103595,-610.17,0.00032876,2]
[359356900,1745949103605,-6805.43,0.00032876,2]
[359356901,1745949103614,-500.0,0.00032877,2]
[359356902,1745949103624,-440.4,0.00032877,2]
[359356903,1745949103635,-244.69281424,0.00032877,2]
[359356904,1745949103647,-400.0,0.000329,12]
[359356905,1745949103657,-823.0,0.00032949,3]
[359356906,1745949103666,-25138.31785875,0.00033,2]
[359356907,1745949103676,-916.91965709,0.00033,30]
[359356908,1745949103686,-1037.69,0.00033,2]
[359356909,1745949103696,-2000.0,0.00033,4]
[359356910,1745949103706,-248.71531821,0.00033016,2]
[359356911,1745949103715,-85484.0291541,0.00033018,2]
[359356912,1745949103725,-51455.88,0.00033064,2]
[359356913,1745949103735,-480.06,0.0003308,2]
[359356914,1745949103744,-152.0,0.00033089,7]
[359356915,1745949103754,-2082.1308888,0.00033107,11]
[359356916,1745949103763,-1568.0644537,0.00033127,2]
[359356917,1745949103773,-8867.879895,0.00033127,2]
[359356918,1745949103783,-158.7,0.00033128,14]
[359356919,1745949103792,-309.3,0.00033128,7]
[359356920,1745949103802,-151.0,0.00033128,14]
[359356921,1745949103811,-236.9,0.00033149,2]
[359356922,1745949103821,-519.67,0.0003315,2]
[359356923,1745949103830,-498.52,0.0003315,2]
[359356924,1745949103839,-470.0,0.0003315,2]
[359356925,1745949103849,-537.97,0.0003315,2]
[359356926,1745949103858,-314.26745971,0.0003315,2]
[359356927,1745949103867,-1113.6,0.0003315,2]
[359356928,1745949103876,-611.04,0.0003315,2]
[359356929,1745949103886,-631.2,0.0003315,2]
[359356930,1745949103896,-564.79,0.0003315,2]
[359356931,1745949103905,-668.5,0.0003315,2]
[359356932,1745949104051,-826.62,0.0003315,2]
[359356933,1745949104063,-800.64,0.0003315,2]
[359356934,1745949104072,-591.42973357,0.0003315,2]
[359356935,1745949104082,-502.1,0.0003315,2]
[359356936,1745949104091,-2160.32,0.0003315,2]
[359356937,1745949104100,-1312.33,0.0003315,2]
[359356938,1745949104110,-548.44,0.0003315,2]
[359356939,1745949104119,-2312.86,0.0003315,2]
[359356940,1745949104129,-484.25,0.0003315,2]
[359356941,1745949104138,-470.0,0.0003315,2]
[359356942,1745949104148,-470.0,0.0003315,2]
[359356943,1745949104157,-470.0,0.0003315,2]
[359356944,1745949104167,-486.33,0.0003315,2]
[359356945,1745949104177,-657.74,0.0003315,2]
[359356946,1745949104188,-542.45,0.0003315,2]
[359356947,1745949104198,-656.69,0.0003315,2]
[359356948,1745949104207,-552.91,0.0003315,2]
[359356949,1745949104217,-610.66,0.0003315,2]
[359356950,1745949104226,-558.47,0.0003315,2]
[359356951,1745949104236,-471.31,0.0003315,2]
[359356952,1745949104245,-1049.74,0.0003315,2]
[359356953,1745949104254,-566.36,0.0003315,2]
[359356954,1745949104263,-534.78,0.0003315,2]
[359356955,1745949104273,-563.33,0.0003315,2]
[359356956,1745949104282,-470.0,0.0003315,2]
[359356957,1745949104292,-557.82,0.0003315,2]
[359356958,1745949104301,-1537.22,0.0003315,2]
[359356959,1745949104311,-496.59,0.0003315,2]
[359356960,1745949104320,-652.05,0.0003315,2]
[359356961,1745949104330,-1146.41,0.0003315,2]
[359356962,1745949104339,-579.71,0.0003315,2]
[359356963,1745949104348,-470.0,0.0003315,2]
[359356964,1745949104358,-704.42,0.0003315,2]
[359356965,1745949104367,-535.26018233,0.0003315,2]
[359356966,1745949104377,-499.98757242,0.0003315,2]
[359356967,1745949104386,-191.77577242,0.0003315,2]
[359356968,1745949104395,-625.71,0.0003315,2]
[359356969,1745949104405,-2279.31,0.0003315,2]
[359356970,1745949104415,-544.48,0.0003315,2]
[359356971,1745949104424,-904.77,0.0003315,2]
[359356972,1745949104435,-1788.53,0.0003315,2]
[359356973,1745949104445,-510.11,0.0003315,2]
[359356974,1745949104454,-3823.23,0.0003315,2]
[359356975,1745949104464,-2052.75,0.0003315,2]
[359356976,1745949104474,-685.59,0.0003315,2]
[359356977,1745949104484,-539.63,0.0003315,2]
[359356978,1745949104494,-2047.07,0.0003315,2]
[359356979,1745949104504,-1581.86,0.0003315,2]
[359356980,1745949104514,-470.0,0.0003315,2]
[359356981,1745949104523,-703.7,0.0003315,2]
[359356982,1745949104533,-2163.53,0.0003315,2]
[359356983,1745949104542,-515.86,0.0003315,2]
[359356984,1745949104552,-1020.49,0.0003315,2]
[359356985,1745949104561,-716.59,0.0003315,2]
[359356986,1745949104571,-490.92,0.0003315,2]
[359356987,1745949104580,-2329.69,0.0003315,2]
[359356988,1745949104590,-505.96376971,0.0003315,2]
[359356989,1745949104599,-765.88,0.0003315,2]
[359356990,1745949104609,-470.0,0.0003315,2]
[359356991,1745949104618,-568.19,0.0003315,2]
[359356992,1745949104628,-1203.42,0.0003315,2]
[359356993,1745949104637,-970.99,0.0003315,2]
[359356994,1745949104648,-645.19,0.0003315,2]
[359356995,1745949104657,-901.28,0.0003315,2]
[359356996,1745949104667,-701.64,0.0003315,2]
[359356997,1745949104676,-334.91271514,0.0003315,2]
[359356998,1745949104685,-1092.53,0.0003315,2]
[359356999,1745949104695,-903.38,0.0003315,2]
[359357000,1745949104704,-1736.45,0.0003315,2]
[359357001,1745949104714,-1436.64,0.0003315,2]
[359357002,1745949104724,-559.81,0.0003315,2]
[359357003,1745949104733,-2108.64,0.0003315,2]
[359357004,1745949104743,-960.7,0.0003315,2]
[359357005,1745949104752,-2353.36,0.0003315,2]
[359357006,1745949104762,-745.59,0.0003315,2]
[359357007,1745949104771,-545.5,0.0003315,2]
[359357008,1745949104781,-549.47,0.0003315,2]
[359357009,1745949104790,-586.45,0.0003315,2]
[359357010,1745949104801,-770.83,0.0003315,2]
[359357011,1745949104811,-470.0,0.0003315,2]
[359357012,1745949104820,-797.04,0.0003315,2]
[359357013,1745949104830,-543.81,0.0003315,2]
[359357014,1745949104840,-885.12,0.0003315,2]
[359357015,1745949104849,-562.35,0.0003315,2]
[359357016,1745949104859,-476.24,0.0003315,2]
[359357017,1745949104868,-880.52,0.0003315,2]
[359357018,1745949104878,-915.71,0.0003315,2]
[359357019,1745949104887,-820.44,0.0003315,2]
[359357020,1745949104897,-470.0,0.0003315,2]
[359357021,1745949104906,-205.84151511,0.0003315,2]
[359357022,1745949104915,-625.99,0.0003315,2]
[359357023,1745949104924,-568.66,0.0003315,2]
[359357024,1745949104933,-902.33,0.0003315,2]
[359357025,1745949104942,-486.67,0.0003315,2]
[359357026,1745949104952,-682.29,0.0003315,2]
[359357027,1745949104961,-847.38,0.0003315,2]
[359357028,1745949104970,-3039.36,0.0003315,2]
[359357029,1745949104979,-474.23,0.0003315,2]
[359357030,1745949104989,-470.0,0.0003315,2]
[359357031,1745949104998,-613.1,0.0003315,2]
[359357032,1745949105009,-683.49,0.0003315,2]
[359357033,1745949105018,-537.75,0.0003315,2]
[359357034,1745949105027,-539.83,0.0003315,2]
[359357035,1745949105037,-595.72,0.0003315,2]
[359357036,1745949105047,-470.0,0.0003315,2]
[359357037,1745949105059,-6080.07,0.0003315,2]
[359357038,1745949105068,-481.77,0.0003315,2]
[359357039,1745949105077,-520.98,0.0003315,2]
[359357040,1745949105087,-622.98,0.0003315,2]
[359357041,1745949105097,-869.31,0.0003315,2]
[359357042,1745949105106,-704.81,0.0003315,2]
[359357043,1745949105116,-12545.32,0.0003315,2]
[359357044,1745949105126,-492.66,0.0003315,2]
[359357045,1745949105138,-783.52,0.0003315,2]
[359357046,1745949105148,-557.05,0.0003315,2]
[359357047,1745949105157,-410.60008324,0.0003315,2]
[359357048,1745949105166,-531.21,0.0003315,2]
[359357049,1745949105176,-470.0,0.0003315,2]
[359357050,1745949105186,-636.94,0.0003315,2]
[359357051,1745949105195,-488.6,0.0003315,2]
[359357052,1745949105205,-1144.88,0.0003315,2]
[359357053,1745949105215,-624.4,0.0003315,2]
[359357054,1745949105227,-650.35,0.0003315,2]
[359357055,1745949105238,-673.11,0.0003315,2]
[359357056,1745949105249,-470.0,0.0003315,2]
[359357057,1745949105258,-472.75,0.0003315,2]
[359357058,1745949105267,-470.0,0.0003315,2]
[359357059,1745949105277,-6481.15,0.0003315,2]
[359357060,1745949105287,-505.43,0.0003315,2]
[359357061,1745949105297,-61295.82,0.0003315,2]
[359357062,1745949105308,-482.94,0.0003315,2]
[359357063,1745949105317,-606.96,0.0003315,2]
[359357064,1745949105326,-773.47,0.0003315,2]
[359357065,1745949105336,-1001.6,0.0003315,2]
[359357066,1745949105346,-586.56,0.0003315,2]
[359357067,1745949105357,-217.19771299,0.0003315,2]
[359357068,1745949105368,-470.0,0.0003315,2]
[359357069,1745949105379,-7239.44,0.0003315,2]
[359357070,1745949105389,-610.17,0.0003315,2]
[359357071,1745949105398,-6805.43,0.0003315,2]
[359357072,1745949105408,-500.0,0.00033151,2]
[359357073,1745949105417,-200.0,0.00033151,2]
[359357074,1745949105427,-719.7182865,0.00033152,5]
[359357075,1745949105437,-418.06454181,0.00033152,5]
[359357076,1745949105446,-1000.0,0.00033152,5]
[359357077,1745949105456,-1000.0,0.00033152,5]
[359357078,1745949105466,-306.09,0.00033165,2]
[359357079,1745949105475,-211.25339233,0.00033273,5]
[359357080,1745949105484,-51455.88,0.00033338,2]
[359357081,1745949105494,-519.67,0.00033424,2]
[359357082,1745949105503,-498.52,0.00033424,2]
[359357083,1745949105513,-470.0,0.00033424,2]
[359357084,1745949105522,-537.97,0.00033424,2]
[359357085,1745949105532,-1113.6,0.00033424,2]
[359357086,1745949105541,-611.04,0.00033424,2]
[359357087,1745949105551,-631.2,0.00033424,2]
[359357088,1745949105560,-564.79,0.00033424,2]
[359357089,1745949105570,-668.5,0.00033424,2]
[359357090,1745949105580,-826.62,0.00033424,2]
[359357091,1745949105590,-800.64,0.00033424,2]
[359357092,1745949105599,-502.1,0.00033424,2]
[359357093,1745949105609,-2160.32,0.00033424,2]
[359357094,1745949105619,-1312.33,0.00033424,2]
[359357095,1745949105628,-548.44,0.00033424,2]
[359357096,1745949105637,-2312.86,0.00033424,2]
[359357097,1745949105647,-484.25,0.00033424,2]
[359357098,1745949105657,-605.72458947,0.00033424,2]
[359357099,1745949105666,-333.39267988,0.00033424,2]
[359357100,1745949105676,-460.52632488,0.00033424,2]
[359357101,1745949105686,-486.33,0.00033424,2]
[359357102,1745949105696,-657.74,0.00033424,2]
[359357103,1745949105706,-542.45,0.00033424,2]
[359357104,1745949105716,-656.69,0.00033424,2]
[359357105,1745949105725,-552.91,0.00033424,2]
[359357106,1745949105735,-610.66,0.00033424,2]
[359357107,1745949105745,-471.31,0.00033424,2]
[359357108,1745949105755,-558.47,0.00033424,2]
[359357109,1745949105765,-1049.74,0.00033424,2]
[359357110,1745949105774,-566.36,0.00033424,2]
[359357111,1745949105784,-534.78,0.00033424,2]
[359357112,1745949105794,-563.33,0.00033424,2]
[359357113,1745949105803,-470.0,0.00033424,2]
[359357114,1745949105814,-557.82,0.00033424,2]
[359357115,1745949105825,-1537.22,0.00033424,2]
[359357116,1745949105834,-496.59,0.00033424,2]
[359357117,1745949105843,-652.05,0.00033424,2]
[359357118,1745949105854,-1146.41,0.00033424,2]
[359357119,1745949105863,-579.71,0.00033424,2]
[359357120,1745949105873,-362.97203073,0.00033424,2]
[359357121,1745949105883,-704.42,0.00033424,2]
[359357122,1745949105892,-625.71,0.00033424,2]
[359357123,1745949105902,-2279.31,0.00033424,2]
[359357124,1745949105912,-544.48,0.00033424,2]
[359357125,1745949105921,-904.77,0.00033424,2]
[359357126,1745949105931,-1788.53,0.00033424,2]
[359357127,1745949105941,-510.11,0.00033424,2]
[359357128,1745949105951,-3823.23,0.00033424,2]
[359357129,1745949105961,-2052.75,0.00033424,2]
[359357130,1745949105970,-685.59,0.00033424,2]
[359357131,1745949105980,-539.63,0.00033424,2]
[359357132,1745949105990,-2047.07,0.00033424,2]
[359357133,1745949105999,-1581.86,0.00033424,2]
[359357134,1745949106010,-334.90112263,0.00033424,2]
[359357135,1745949106019,-703.7,0.00033424,2]
[359357136,1745949106029,-2163.53,0.00033424,2]
[359357137,1745949106039,-515.86,0.00033424,2]
[359357138,1745949106049,-1020.49,0.00033424,2]
[359357139,1745949106061,-716.59,0.00033424,2]
[359357140,1745949106070,-490.92,0.00033424,2]
[359357141,1745949106080,-2329.69,0.00033424,2]
[359357142,1745949106090,-765.88,0.00033424,2]
[359357143,1745949106099,-534.22887421,0.00033424,2]
[359357144,1745949106109,-568.19,0.00033424,2]
[359357145,1745949106118,-1203.42,0.00033424,2]
[359357146,1745949106127,-970.99,0.00033424,2]
[359357147,1745949106254,-645.19,0.00033424,2]
[359357148,1745949106273,-901.28,0.00033424,2]
[359357149,1745949106284,-701.64,0.00033424,2]
[359357150,1745949106293,-1092.53,0.00033424,2]
[359357151,1745949106303,-903.38,0.00033424,2]
[359357152,1745949106313,-1736.45,0.00033424,2]
[359357153,1745949106323,-1436.64,0.00033424,2]
[359357154,1745949106332,-559.81,0.00033424,2]
[359357155,1745949106342,-2108.64,0.00033424,2]
[359357156,1745949106352,-960.7,0.00033424,2]
[359357157,1745949106362,-2353.36,0.00033424,2]
[359357158,1745949106372,-745.59,0.00033424,2]
[359357159,1745949106382,-545.5,0.00033424,2]
[359357160,1745949106392,-549.47,0.00033424,2]
[359357161,1745949106403,-586.45,0.00033424,2]
[359357162,1745949106413,-770.83,0.00033424,2]
[359357163,1745949106423,-283.6075379,0.00033424,2]
[359357164,1745949106432,-797.04,0.00033424,2]
[359357165,1745949106442,-543.81,0.00033424,2]